[Event "Late-Titled-Tuesday-Blitz-March-05-2024"]
[Site "Chess.com"]
[Date "2024.03.05"]
[Round "10"]
[White "secretsuperstar7"]
[Black "TheAlienParty"]
[Result "0-1"]
[WhiteElo "2490"]
[BlackElo "2409"]
[TimeControl "180+1"]
[EndTime "15:48:26 PST"]
[Termination "TheAlienParty won by resignation"]

1. c4 {[%clk 0:02:59.6]} 1... e5 {[%clk 0:02:57.8]} 2. Nc3 {[%clk 0:02:59.8]}
2... Nc6 {[%clk 0:02:53.2]} 3. Nf3 {[%clk 0:02:58.1]} 3... f5 {[%clk 0:02:50.2]}
4. d4 {[%clk 0:02:53.1]} 4... e4 {[%clk 0:02:49]} 5. Ng5 {[%clk 0:02:51.8]} 5...
h6 {[%clk 0:02:46.3]} 6. Nh3 {[%clk 0:02:49.3]} 6... g5 {[%clk 0:02:45.3]} 7. g3
{[%clk 0:02:48.2]} 7... Bg7 {[%clk 0:02:42.7]} 8. Bg2 {[%clk 0:02:46.6]} 8...
Nxd4 {[%clk 0:02:39.7]} 9. O-O {[%clk 0:02:45.6]} 9... c6 {[%clk 0:02:34.4]} 10.
e3 {[%clk 0:02:42.4]} 10... Nf3+ {[%clk 0:02:28.7]} 11. Bxf3 {[%clk 0:02:38]}
11... exf3 {[%clk 0:02:28.3]} 12. e4 {[%clk 0:02:38.1]} 12... Bxc3 {[%clk
0:02:21.7]} 13. bxc3 {[%clk 0:02:37.5]} 13... fxe4 {[%clk 0:02:21]} 14. Re1
{[%clk 0:02:37.7]} 14... d5 {[%clk 0:02:19.5]} 15. Qxf3 {[%clk 0:02:36.9]} 15...
g4 {[%clk 0:02:12.5]} 16. Qe2 {[%clk 0:02:32.7]} 16... gxh3 {[%clk 0:02:11.6]}
17. Qh5+ {[%clk 0:02:32.7]} 17... Kf8 {[%clk 0:02:09.7]} 18. Ba3+ {[%clk
0:02:28.7]} 18... Kg7 {[%clk 0:02:08.9]} 19. cxd5 {[%clk 0:02:24.9]} 19... Qxd5
{[%clk 0:02:05.4]} 20. Qe2 {[%clk 0:02:22.9]} 20... Qd3 {[%clk 0:01:58.6]} 21.
Qh5 {[%clk 0:01:56.7]} 21... Nf6 {[%clk 0:01:45.2]} 22. Qe2 {[%clk 0:01:37.2]}
22... Qxe2 {[%clk 0:01:41.5]} 23. Rxe2 {[%clk 0:01:38.1]} 23... Bg4 {[%clk
0:01:41.4]} 24. Rd2 {[%clk 0:01:37.2]} 24... Rhd8 {[%clk 0:01:39.9]} 25. Rxd8
{[%clk 0:01:36.3]} 25... Rxd8 {[%clk 0:01:38.7]} 26. c4 {[%clk 0:01:36.9]} 26...
b6 {[%clk 0:01:35.5]} 27. f3 {[%clk 0:01:37]} 27... exf3 {[%clk 0:01:32.7]} 28.
Kf2 {[%clk 0:01:37]} 28... Kg6 {[%clk 0:01:29.7]} 29. Ke3 {[%clk 0:01:34.6]}
29... Re8+ {[%clk 0:01:28.7]} 30. Kf2 {[%clk 0:01:34]} 30... Re2+ {[%clk
0:01:27.4]} 31. Kf1 {[%clk 0:01:34.4]} 31... Rxh2 {[%clk 0:01:25.4]} 0-1

[Event "Late-Titled-Tuesday-Blitz-March-05-2024"]
[Site "Chess.com"]
[Date "2024.03.05"]
[Round "10"]
[White "jlf287"]
[Black "DeTimmerman"]
[Result "0-1"]
[WhiteElo "2557"]
[BlackElo "2766"]
[TimeControl "180+1"]
[EndTime "15:48:32 PST"]
[Termination "DeTimmerman won by resignation"]

1. d4 {[%clk 0:03:00.9]} 1... Nf6 {[%clk 0:02:59.7]} 2. c4 {[%clk 0:03:01.4]}
2... e6 {[%clk 0:02:59.7]} 3. Nf3 {[%clk 0:03:01.9]} 3... d5 {[%clk 0:02:59.9]}
4. g3 {[%clk 0:03:02.1]} 4... Be7 {[%clk 0:02:59.2]} 5. Bg2 {[%clk 0:03:02.4]}
5... O-O {[%clk 0:02:59.4]} 6. O-O {[%clk 0:03:03.3]} 6... dxc4 {[%clk
0:02:59.5]} 7. Qc2 {[%clk 0:03:03.4]} 7... b5 {[%clk 0:03:00.1]} 8. a4 {[%clk
0:03:02.3]} 8... b4 {[%clk 0:03:00.5]} 9. Nfd2 {[%clk 0:03:01.1]} 9... c6 {[%clk
0:03:00.6]} 10. Nxc4 {[%clk 0:03:00.6]} 10... Qxd4 {[%clk 0:03:01.2]} 11. Be3
{[%clk 0:02:54]} 11... Qg4 {[%clk 0:03:00.6]} 12. Bf3 {[%clk 0:02:49.9]} 12...
Qh3 {[%clk 0:02:56]} 13. Nbd2 {[%clk 0:02:39.9]} 13... Nd5 {[%clk 0:02:53.7]}
14. Ne4 {[%clk 0:02:30.4]} 14... Nd7 {[%clk 0:02:42.2]} 15. Bg2 {[%clk
0:02:08.1]} 15... Qh5 {[%clk 0:02:40.4]} 16. Ned6 {[%clk 0:02:04.7]} 16... Ba6
{[%clk 0:02:28.6]} 17. Bf3 {[%clk 0:02:02.3]} 17... Qg6 {[%clk 0:02:14.8]} 18.
Be4 {[%clk 0:02:00.5]} 18... f5 {[%clk 0:02:13.6]} 19. Bg2 {[%clk 0:01:59.2]}
19... Bxd6 {[%clk 0:01:56]} 20. Nxd6 {[%clk 0:01:58.9]} 20... Nxe3 {[%clk
0:01:56.8]} 21. fxe3 {[%clk 0:01:58.7]} 21... Ne5 {[%clk 0:01:46.8]} 22. Qc5
{[%clk 0:01:46.8]} 22... Ng4 {[%clk 0:01:46.7]} 23. Qxc6 {[%clk 0:01:35.7]}
23... Bxe2 {[%clk 0:01:44.4]} 24. Rfe1 {[%clk 0:01:35.1]} 24... Bd3 {[%clk
0:01:37.7]} 25. Rad1 {[%clk 0:01:35.3]} 25... Rad8 {[%clk 0:01:24.6]} 26. Rxd3
{[%clk 0:01:32]} 26... Ne5 {[%clk 0:01:25.1]} 27. Qc4 {[%clk 0:01:22.7]} 27...
Nxc4 {[%clk 0:01:25]} 0-1

[Event "Late-Titled-Tuesday-Blitz-March-05-2024"]
[Site "Chess.com"]
[Date "2024.03.05"]
[Round "10"]
[White "morte-negra"]
[Black "Veleamater"]
[Result "1-0"]
[WhiteElo "2086"]
[BlackElo "2308"]
[TimeControl "180+1"]
[EndTime "15:48:42 PST"]
[Termination "morte-negra won by checkmate"]

1. e4 {[%clk 0:03:00.9]} 1... d6 {[%clk 0:03:00.9]} 2. d4 {[%clk 0:02:59.6]}
2... g6 {[%clk 0:03:01.7]} 3. Nc3 {[%clk 0:02:58.6]} 3... Bg7 {[%clk 0:03:02.6]}
4. Be3 {[%clk 0:02:58.7]} 4... Nf6 {[%clk 0:03:03.2]} 5. Qd2 {[%clk 0:02:59.2]}
5... Nc6 {[%clk 0:03:03.4]} 6. f3 {[%clk 0:02:56.5]} 6... O-O {[%clk 0:03:03]}
7. h4 {[%clk 0:02:57.1]} 7... e5 {[%clk 0:03:00.7]} 8. d5 {[%clk 0:02:49.1]}
8... Nd4 {[%clk 0:02:59.8]} 9. Bxd4 {[%clk 0:02:46.5]} 9... exd4 {[%clk
0:02:58.5]} 10. Qxd4 {[%clk 0:02:47.1]} 10... Nxe4 {[%clk 0:02:58.2]} 11. Qd3
{[%clk 0:02:41]} 11... Nxc3 {[%clk 0:02:57.9]} 12. bxc3 {[%clk 0:02:40.4]} 12...
Bf5 {[%clk 0:02:57.9]} 13. Qd2 {[%clk 0:02:35.3]} 13... Qf6 {[%clk 0:02:54]} 14.
Ne2 {[%clk 0:02:32.5]} 14... Rfe8 {[%clk 0:02:53.6]} 15. Kf2 {[%clk 0:02:33]}
15... h5 {[%clk 0:02:52.9]} 16. Nd4 {[%clk 0:02:27]} 16... Bd7 {[%clk
0:02:51.5]} 17. Bd3 {[%clk 0:02:24.2]} 17... Kh7 {[%clk 0:02:50.7]} 18. g4
{[%clk 0:02:17]} 18... Bxg4 {[%clk 0:02:32.4]} 19. Rag1 {[%clk 0:02:05.6]} 19...
Bh6 {[%clk 0:02:32.3]} 20. Qd1 {[%clk 0:01:54.1]} 20... c5 {[%clk 0:02:31.7]}
21. dxc6 {[%clk 0:01:52.5]} 21... bxc6 {[%clk 0:02:31.9]} 22. Rxg4 {[%clk
0:01:47.5]} 22... hxg4 {[%clk 0:02:30.6]} 23. h5 {[%clk 0:01:47.9]} 23... c5
{[%clk 0:02:27]} 24. hxg6+ {[%clk 0:01:47.9]} 24... fxg6 {[%clk 0:02:27.1]} 25.
Qd2 {[%clk 0:01:35.6]} 25... g3+ {[%clk 0:02:09.4]} 26. Kg2 {[%clk 0:01:16.7]}
26... cxd4 {[%clk 0:02:05.2]} 27. Qxh6+ {[%clk 0:01:15.1]} 27... Kg8 {[%clk
0:02:02.5]} 28. Bc4+ {[%clk 0:01:05]} 28... Re6 {[%clk 0:01:58.2]} 29. Bxe6+
{[%clk 0:00:49.4]} 29... Qxe6 {[%clk 0:01:57.8]} 30. Qh8+ {[%clk 0:00:49.7]}
30... Kf7 {[%clk 0:01:56.5]} 31. Rh7# {[%clk 0:00:44]} 1-0

[Event "Late-Titled-Tuesday-Blitz-March-05-2024"]
[Site "Chess.com"]
[Date "2024.03.05"]
[Round "10"]
[White "AlexeiShirov"]
[Black "Jospem"]
[Result "0-1"]
[WhiteElo "2873"]
[BlackElo "3103"]
[TimeControl "180+1"]
[EndTime "15:48:57 PST"]
[Termination "Jospem won by resignation"]

1. e4 {[%clk 0:03:00.9]} 1... e5 {[%clk 0:03:00.5]} 2. Nf3 {[%clk 0:03:00.9]}
2... Nc6 {[%clk 0:03:01.2]} 3. Bb5 {[%clk 0:03:00.8]} 3... a6 {[%clk 0:03:01.7]}
4. Ba4 {[%clk 0:03:00.9]} 4... Nf6 {[%clk 0:03:02.3]} 5. O-O {[%clk 0:03:00.7]}
5... Be7 {[%clk 0:03:02.9]} 6. Re1 {[%clk 0:03:00.3]} 6... b5 {[%clk 0:03:03]}
7. Bb3 {[%clk 0:03:00.3]} 7... d6 {[%clk 0:03:03.9]} 8. c3 {[%clk 0:03:00.3]}
8... O-O {[%clk 0:03:04.4]} 9. h3 {[%clk 0:03:00.3]} 9... Be6 {[%clk 0:03:05.1]}
10. d4 {[%clk 0:02:57]} 10... Bxb3 {[%clk 0:03:04.8]} 11. axb3 {[%clk
0:02:56.5]} 11... h6 {[%clk 0:03:04.1]} 12. Nbd2 {[%clk 0:02:53.1]} 12... Re8
{[%clk 0:02:59.1]} 13. d5 {[%clk 0:02:49.4]} 13... Nb8 {[%clk 0:02:59.1]} 14.
Nf1 {[%clk 0:02:47.7]} 14... c6 {[%clk 0:02:59.1]} 15. c4 {[%clk 0:02:46.9]}
15... cxd5 {[%clk 0:02:50.7]} 16. cxd5 {[%clk 0:02:46.2]} 16... Nbd7 {[%clk
0:02:50]} 17. Ng3 {[%clk 0:02:44.6]} 17... Qc7 {[%clk 0:02:44.4]} 18. Be3 {[%clk
0:02:43.3]} 18... Rec8 {[%clk 0:02:44.5]} 19. Rc1 {[%clk 0:02:39.8]} 19... Qb7
{[%clk 0:02:44.4]} 20. Qd2 {[%clk 0:02:39.6]} 20... Bf8 {[%clk 0:02:43.9]} 21.
Nf5 {[%clk 0:02:37.4]} 21... Nxe4 {[%clk 0:02:37.7]} 22. Qd3 {[%clk 0:02:31.9]}
22... Nef6 {[%clk 0:02:36.1]} 23. Nd2 {[%clk 0:02:04.5]} 23... Qxd5 {[%clk
0:02:15.6]} 24. Qxd5 {[%clk 0:01:57.7]} 24... Nxd5 {[%clk 0:02:16.5]} 25. Ne4
{[%clk 0:01:57.3]} 25... Nxe3 {[%clk 0:02:16.6]} 26. Nxe3 {[%clk 0:01:51.5]}
26... Nc5 {[%clk 0:02:03.4]} 27. Nxc5 {[%clk 0:01:47.2]} 27... dxc5 {[%clk
0:02:04.3]} 28. Nd5 {[%clk 0:01:47]} 28... Rd8 {[%clk 0:01:51.9]} 29. Rxe5
{[%clk 0:01:46.8]} 29... f6 {[%clk 0:01:48.7]} 30. Rf5 {[%clk 0:01:46.5]} 30...
Kf7 {[%clk 0:01:38.1]} 0-1

[Event "Late-Titled-Tuesday-Blitz-March-05-2024"]
[Site "Chess.com"]
[Date "2024.03.05"]
[Round "10"]
[White "Arlo2024"]
[Black "Bkmzzzzz"]
[Result "1-0"]
[WhiteElo "2289"]
[BlackElo "2388"]
[TimeControl "180+1"]
[EndTime "15:49:06 PST"]
[Termination "Arlo2024 won by resignation"]

1. e4 {[%clk 0:03:00.9]} 1... d6 {[%clk 0:02:59.5]} 2. d4 {[%clk 0:03:00.8]}
2... Nf6 {[%clk 0:03:00]} 3. Nc3 {[%clk 0:03:00.6]} 3... e5 {[%clk 0:03:00.3]}
4. Nf3 {[%clk 0:03:00.5]} 4... Nbd7 {[%clk 0:02:59.4]} 5. Bc4 {[%clk 0:03:00.5]}
5... Be7 {[%clk 0:02:59.4]} 6. O-O {[%clk 0:03:00.5]} 6... O-O {[%clk
0:02:59.2]} 7. a4 {[%clk 0:02:59.5]} 7... c6 {[%clk 0:02:59.5]} 8. Re1 {[%clk
0:02:59.2]} 8... b6 {[%clk 0:02:50.3]} 9. h3 {[%clk 0:02:59.2]} 9... a6 {[%clk
0:02:49.8]} 10. Bg5 {[%clk 0:02:46.4]} 10... h6 {[%clk 0:02:43.1]} 11. Be3
{[%clk 0:02:46]} 11... Rb8 {[%clk 0:02:24.3]} 12. Qd2 {[%clk 0:02:41.8]} 12...
b5 {[%clk 0:02:20.8]} 13. axb5 {[%clk 0:02:42.7]} 13... axb5 {[%clk 0:02:21.4]}
14. Bd3 {[%clk 0:02:40.5]} 14... Qc7 {[%clk 0:02:08.5]} 15. Ne2 {[%clk
0:02:35.7]} 15... d5 {[%clk 0:01:12.9]} 16. Ng3 {[%clk 0:02:30.9]} 16... dxe4
{[%clk 0:01:07.4]} 17. Nxe4 {[%clk 0:02:30.8]} 17... Nxe4 {[%clk 0:01:07.5]} 18.
Bxe4 {[%clk 0:02:30.8]} 18... exd4 {[%clk 0:01:04.9]} 19. Nxd4 {[%clk
0:02:27.9]} 19... c5 {[%clk 0:00:57.9]} 20. Nc6 {[%clk 0:02:24.8]} 20... Nf6
{[%clk 0:00:45.4]} 21. Bf4 {[%clk 0:02:21.6]} 21... Nxe4 {[%clk 0:00:40]} 22.
Bxc7 {[%clk 0:02:09.6]} 22... Nxd2 {[%clk 0:00:39.6]} 23. Nxe7+ {[%clk
0:02:10.2]} 23... Kh7 {[%clk 0:00:38.1]} 24. Bxb8 {[%clk 0:02:11.1]} 24... Be6
{[%clk 0:00:35.2]} 25. Bd6 {[%clk 0:02:02.8]} 25... Nc4 {[%clk 0:00:30]} 26.
Bxc5 {[%clk 0:01:57.5]} 26... Re8 {[%clk 0:00:25.6]} 27. b3 {[%clk 0:01:43.5]}
1-0

[Event "Late-Titled-Tuesday-Blitz-March-05-2024"]
[Site "Chess.com"]
[Date "2024.03.05"]
[Round "10"]
[White "ZachHKL"]
[Black "katharinareinecke"]
[Result "0-1"]
[WhiteElo "2129"]
[BlackElo "1983"]
[TimeControl "180+1"]
[EndTime "15:49:07 PST"]
[Termination "katharinareinecke won by resignation"]

1. c4 {[%clk 0:03:00.9]} 1... c6 {[%clk 0:02:52.3]} 2. d4 {[%clk 0:02:59.5]}
2... d5 {[%clk 0:02:50.3]} 3. g3 {[%clk 0:02:58.1]} 3... Nf6 {[%clk 0:02:49.4]}
4. Bg2 {[%clk 0:02:57.4]} 4... e6 {[%clk 0:02:48.4]} 5. Qc2 {[%clk 0:02:56.5]}
5... Be7 {[%clk 0:02:48]} 6. Nf3 {[%clk 0:02:56.2]} 6... O-O {[%clk 0:02:48]} 7.
O-O {[%clk 0:02:55]} 7... Ne4 {[%clk 0:02:46.3]} 8. Nbd2 {[%clk 0:02:55.3]} 8...
f5 {[%clk 0:02:45.5]} 9. Ne5 {[%clk 0:02:52.6]} 9... Nd7 {[%clk 0:02:43.9]} 10.
Ndf3 {[%clk 0:02:51.6]} 10... Ndf6 {[%clk 0:02:41.1]} 11. b3 {[%clk 0:02:45.7]}
11... Bd7 {[%clk 0:02:34]} 12. Bb2 {[%clk 0:02:45.2]} 12... Be8 {[%clk
0:02:33.2]} 13. Nd2 {[%clk 0:02:41]} 13... Bg6 {[%clk 0:02:31.8]} 14. f3 {[%clk
0:02:37.7]} 14... Nxd2 {[%clk 0:02:26.6]} 15. Qxd2 {[%clk 0:02:38.6]} 15... Nd7
{[%clk 0:02:23.2]} 16. Nxg6 {[%clk 0:02:30.6]} 16... hxg6 {[%clk 0:02:22.4]} 17.
e4 {[%clk 0:02:31.1]} 17... Nf6 {[%clk 0:02:14.7]} 18. Rae1 {[%clk 0:02:27.2]}
18... fxe4 {[%clk 0:02:10.8]} 19. fxe4 {[%clk 0:02:26.3]} 19... Nxe4 {[%clk
0:02:03.8]} 20. Bxe4 {[%clk 0:02:26]} 20... Rxf1+ {[%clk 0:01:57.2]} 21. Rxf1
{[%clk 0:02:19.6]} 21... dxe4 {[%clk 0:01:56.3]} 22. Qf4 {[%clk 0:02:16.5]}
22... Bf6 {[%clk 0:01:52.9]} 23. Qxe4 {[%clk 0:02:15.1]} 23... Qd7 {[%clk
0:01:47.1]} 24. Kg2 {[%clk 0:01:56.4]} 24... Rd8 {[%clk 0:01:38.1]} 25. Qf4
{[%clk 0:01:37.5]} 25... g5 {[%clk 0:01:30.9]} 26. Qf3 {[%clk 0:01:31.2]} 26...
c5 {[%clk 0:01:25.2]} 27. Rd1 {[%clk 0:01:16.7]} 27... cxd4 {[%clk 0:01:23.9]}
28. Qe4 {[%clk 0:01:16.1]} 28... e5 {[%clk 0:01:21]} 29. Ba3 {[%clk 0:01:10]}
29... Qc6 {[%clk 0:01:18.2]} 30. Kf3 {[%clk 0:01:08.6]} 30... g4+ {[%clk
0:01:06.1]} 0-1

[Event "Late-Titled-Tuesday-Blitz-March-05-2024"]
[Site "Chess.com"]
[Date "2024.03.05"]
[Round "10"]
[White "vladgoncharov"]
[Black "titomagno_64"]
[Result "1-0"]
[WhiteElo "2616"]
[BlackElo "2337"]
[TimeControl "180+1"]
[EndTime "15:49:44 PST"]
[Termination "vladgoncharov won on time"]

1. d4 {[%clk 0:03:00.9]} 1... Nf6 {[%clk 0:02:26.8]} 2. c4 {[%clk 0:03:00]} 2...
g6 {[%clk 0:02:27.4]} 3. Nc3 {[%clk 0:02:59.9]} 3... d5 {[%clk 0:02:27.9]} 4.
cxd5 {[%clk 0:02:58.7]} 4... Nxd5 {[%clk 0:02:28.8]} 5. e4 {[%clk 0:02:59]} 5...
Nxc3 {[%clk 0:02:29.4]} 6. bxc3 {[%clk 0:02:59.5]} 6... Bg7 {[%clk 0:02:30.1]}
7. Nf3 {[%clk 0:02:59.6]} 7... c5 {[%clk 0:02:30.8]} 8. Bb5+ {[%clk 0:02:58.9]}
8... Nc6 {[%clk 0:02:30.4]} 9. O-O {[%clk 0:02:56.5]} 9... O-O {[%clk
0:02:21.5]} 10. Bxc6 {[%clk 0:02:56.3]} 10... bxc6 {[%clk 0:02:22]} 11. Qc2
{[%clk 0:02:56.5]} 11... cxd4 {[%clk 0:02:18.3]} 12. cxd4 {[%clk 0:02:56.1]}
12... Bg4 {[%clk 0:02:14.5]} 13. Ne5 {[%clk 0:02:55.8]} 13... Bd7 {[%clk
0:01:54.7]} 14. f4 {[%clk 0:02:43.4]} 14... Rc8 {[%clk 0:01:43.9]} 15. Be3
{[%clk 0:02:40.8]} 15... Be8 {[%clk 0:01:26]} 16. Rab1 {[%clk 0:02:32.3]} 16...
Qa5 {[%clk 0:01:22.7]} 17. Rb7 {[%clk 0:02:28.2]} 17... e6 {[%clk 0:01:10.3]}
18. Rfb1 {[%clk 0:02:23.2]} 18... Bxe5 {[%clk 0:01:08.8]} 19. fxe5 {[%clk
0:02:22.1]} 19... c5 {[%clk 0:01:01.5]} 20. dxc5 {[%clk 0:02:08.9]} 20... Bc6
{[%clk 0:01:00.6]} 21. R7b4 {[%clk 0:02:07.7]} 21... Rfd8 {[%clk 0:00:53.2]} 22.
h4 {[%clk 0:02:07.5]} 22... a6 {[%clk 0:00:40.4]} 23. Qf2 {[%clk 0:02:05.1]}
23... Rd3 {[%clk 0:00:31]} 24. Bh6 {[%clk 0:01:59.8]} 24... Qd8 {[%clk
0:00:20.8]} 25. h5 {[%clk 0:01:52]} 25... a5 {[%clk 0:00:15.2]} 26. Rb8 {[%clk
0:01:32.1]} 26... Rd1+ {[%clk 0:00:14.1]} 27. Kh2 {[%clk 0:01:30.1]} 27... Rxb1
{[%clk 0:00:13.4]} 28. Rxc8 {[%clk 0:01:29.1]} 1-0

[Event "Late-Titled-Tuesday-Blitz-March-05-2024"]
[Site "Chess.com"]
[Date "2024.03.05"]
[Round "10"]
[White "Vegan4future"]
[Black "Pelusiansky"]
[Result "1-0"]
[WhiteElo "2504"]
[BlackElo "2551"]
[TimeControl "180+1"]
[EndTime "15:49:56 PST"]
[Termination "Vegan4future won by checkmate"]

1. e4 {[%clk 0:03:00]} 1... c6 {[%clk 0:02:58]} 2. Nc3 {[%clk 0:02:58.5]} 2...
d5 {[%clk 0:02:58.5]} 3. Qf3 {[%clk 0:02:58.6]} 3... dxe4 {[%clk 0:02:52.3]} 4.
Nxe4 {[%clk 0:02:59.5]} 4... Nf6 {[%clk 0:02:52.9]} 5. Nxf6+ {[%clk 0:02:59.4]}
5... exf6 {[%clk 0:02:53.6]} 6. d4 {[%clk 0:03:00.3]} 6... Bd6 {[%clk
0:02:52.5]} 7. Bd3 {[%clk 0:03:00.1]} 7... O-O {[%clk 0:02:51.2]} 8. Ne2 {[%clk
0:03:01]} 8... Nd7 {[%clk 0:02:48.4]} 9. O-O {[%clk 0:03:01.4]} 9... Re8 {[%clk
0:02:48]} 10. Bf4 {[%clk 0:03:01.6]} 10... Nf8 {[%clk 0:02:45.9]} 11. c3 {[%clk
0:03:00.6]} 11... Be6 {[%clk 0:02:40.3]} 12. Qg3 {[%clk 0:02:54]} 12... Bxf4
{[%clk 0:02:32.3]} 13. Nxf4 {[%clk 0:02:54.9]} 13... Ng6 {[%clk 0:02:27]} 14.
Nh5 {[%clk 0:02:51.3]} 14... a5 {[%clk 0:02:05.2]} 15. f4 {[%clk 0:02:50.9]}
15... f5 {[%clk 0:02:00.4]} 16. Rfe1 {[%clk 0:02:46.3]} 16... a4 {[%clk
0:01:50.6]} 17. a3 {[%clk 0:02:46.4]} 17... Qb6 {[%clk 0:01:49.6]} 18. Re2
{[%clk 0:02:44.4]} 18... c5 {[%clk 0:01:43.9]} 19. dxc5 {[%clk 0:02:45.3]} 19...
Qxc5+ {[%clk 0:01:43.7]} 20. Kh1 {[%clk 0:02:45.3]} 20... Rad8 {[%clk
0:01:36.8]} 21. Rae1 {[%clk 0:02:41.9]} 21... h6 {[%clk 0:01:13.2]} 22. Bc2
{[%clk 0:02:35.3]} 22... Qb5 {[%clk 0:00:57.2]} 23. h4 {[%clk 0:02:29.6]} 23...
Bb3 {[%clk 0:00:43.9]} 24. Rxe8+ {[%clk 0:02:22.5]} 24... Rxe8 {[%clk
0:00:44.3]} 25. Rxe8+ {[%clk 0:02:23.3]} 25... Qxe8 {[%clk 0:00:45]} 26. Bxf5
{[%clk 0:02:23.9]} 26... Qe2 {[%clk 0:00:30.6]} 27. Bg4 {[%clk 0:02:02.3]} 27...
Qf1+ {[%clk 0:00:30.4]} 28. Kh2 {[%clk 0:02:01.8]} 28... Bd5 {[%clk 0:00:23.9]}
29. f5 {[%clk 0:01:59.9]} 29... Nxh4 {[%clk 0:00:22.8]} 30. Nf6+ {[%clk
0:01:24.9]} 30... Kh8 {[%clk 0:00:07.2]} 31. Qb8# {[%clk 0:01:21.6]} 1-0

[Event "Late-Titled-Tuesday-Blitz-March-05-2024"]
[Site "Chess.com"]
[Date "2024.03.05"]
[Round "10"]
[White "kalxandria"]
[Black "Penafiel-Josselyne02"]
[Result "0-1"]
[WhiteElo "2149"]
[BlackElo "2063"]
[TimeControl "180+1"]
[EndTime "15:50:03 PST"]
[Termination "Penafiel-Josselyne02 won by checkmate"]

1. e4 {[%clk 0:03:00.9]} 1... c5 {[%clk 0:02:59.7]} 2. Nf3 {[%clk 0:03:00.1]}
2... d6 {[%clk 0:02:59.7]} 3. d4 {[%clk 0:02:59.5]} 3... cxd4 {[%clk 0:03:00.6]}
4. Nxd4 {[%clk 0:03:00]} 4... Nf6 {[%clk 0:03:00.5]} 5. Nc3 {[%clk 0:02:59.4]}
5... Nc6 {[%clk 0:03:00.9]} 6. Bc4 {[%clk 0:02:56.4]} 6... e6 {[%clk 0:03:00.8]}
7. Bb3 {[%clk 0:02:55]} 7... Be7 {[%clk 0:03:00.9]} 8. Be3 {[%clk 0:02:53.5]}
8... O-O {[%clk 0:02:59.8]} 9. O-O {[%clk 0:02:50.5]} 9... a6 {[%clk 0:03:00]}
10. f4 {[%clk 0:02:48.5]} 10... Bd7 {[%clk 0:02:59.4]} 11. Kh1 {[%clk
0:02:47.3]} 11... Nxd4 {[%clk 0:02:57.7]} 12. Bxd4 {[%clk 0:02:46.1]} 12... Bc6
{[%clk 0:02:58.2]} 13. Qe2 {[%clk 0:02:42.2]} 13... b5 {[%clk 0:02:55.4]} 14.
Rad1 {[%clk 0:02:33.7]} 14... b4 {[%clk 0:02:41.2]} 15. e5 {[%clk 0:02:28.2]}
15... bxc3 {[%clk 0:02:09.5]} 16. exf6 {[%clk 0:02:26.7]} 16... Bxf6 {[%clk
0:02:09.6]} 17. Bxf6 {[%clk 0:02:13.4]} 17... Qxf6 {[%clk 0:02:08.6]} 18. Rxd6
{[%clk 0:02:12.5]} 18... Bb5 {[%clk 0:02:08]} 19. Bc4 {[%clk 0:02:09.6]} 19...
cxb2 {[%clk 0:01:59.7]} 20. f5 {[%clk 0:01:56.6]} 20... Bxc4 {[%clk 0:01:53.4]}
21. Qxc4 {[%clk 0:01:55.2]} 21... Rab8 {[%clk 0:01:49.9]} 22. Rdd1 {[%clk
0:01:37.6]} 22... exf5 {[%clk 0:01:47.1]} 23. Qd3 {[%clk 0:01:22.9]} 23... g6
{[%clk 0:01:44.4]} 24. Qa3 {[%clk 0:01:18.3]} 24... Rfc8 {[%clk 0:01:36.4]} 25.
Qa4 {[%clk 0:01:04.4]} 25... Qc6 {[%clk 0:01:23.2]} 26. Qa5 {[%clk 0:00:30.3]}
26... Qxc2 {[%clk 0:01:16]} 27. h3 {[%clk 0:00:23.1]} 27... b1=Q {[%clk
0:01:11.5]} 28. Rxb1 {[%clk 0:00:22.3]} 28... Rxb1 {[%clk 0:01:11.6]} 29. Rxb1
{[%clk 0:00:22.5]} 29... Qxb1+ {[%clk 0:01:11.8]} 30. Kh2 {[%clk 0:00:23]} 30...
Qb8+ {[%clk 0:01:11.9]} 31. Kh1 {[%clk 0:00:20.3]} 31... Rc1+ {[%clk 0:01:00.4]}
32. Qe1 {[%clk 0:00:18.9]} 32... Rxe1# {[%clk 0:01:00.6]} 0-1